Department family,Entity,Date,Expense Type,Expense area,Supplier,Transation number,Amount,Narrative
Department for Culture Media and Sport,Department for Culture Media and Sport,01/02/2018,Grant-in-Aid (DCMS NDPBs),GIA Arts bodies,Arts Council of England,50003985,"31,422,764.00",ACE GiA February 2018
Department for Culture Media and Sport,Department for Culture Media and Sport,01/02/2018,Grant-in-Aid (DCMS NDPBs),GIA British Film Institute,British Film Institute,50003986,"1,717,303.00",BFI GiA February 2018
Department for Culture Media and Sport,Department for Culture Media and Sport,01/02/2018,Grant-in-Aid (DCMS NDPBs),GIA Libraries bodies,British Library,50003987,"15,889,227.00",BL GiA February 2018
Department for Culture Media and Sport,Department for Culture Media and Sport,01/02/2018,Grant-in-Aid (DCMS NDPBs),GIA Museums & Galleries,British Museum,50003988,"5,268,000.00",BM GiA February 2018
Department for Culture Media and Sport,Department for Culture Media and Sport,01/02/2018,Grant-in-Aid (DCMS NDPBs),GIA Tourism bodies,VisitBritain,50003989,"9,500,000.00",VB GiA February 2018
Department for Culture Media and Sport,Department for Culture Media and Sport,01/02/2018,Grant-in-Aid (DCMS NDPBs),GIA Architecture+Heritage,Churches Conservation Trust,50003990,"249,663.00",CCT GiA February 2018
Department for Culture Media and Sport,Department for Culture Media and Sport,05/02/2018,Grant-in-Aid (DCMS NDPBs),GIA Architecture+Heritage,Historic England (GIA),50003991,"6,400,000.00",HE GiA February 2018
Department for Culture Media and Sport,Department for Culture Media and Sport,01/02/2018,Grant-in-Aid (DCMS NDPBs),GIA Museums & Galleries,Geffrye Museum,50003992,"174,666.00",GM GiA February 2018
Department for Culture Media and Sport,Department for Culture Media and Sport,01/02/2018,Grant-in-Aid (DCMS NDPBs),GIA Museums & Galleries,Horniman Museum,50003993,"509,874.00",HM GiA February 2018
Department for Culture Media and Sport,Department for Culture Media and Sport,01/02/2018,Grant-in-Aid (DCMS NDPBs),GIA Museums & Galleries,Imperial War Museum,50003995,"2,629,116.00",IWM GiA February 2018
Department for Culture Media and Sport,Department for Culture Media and Sport,05/02/2018,Grant-in-Aid (DCMS NDPBs),GIA Museums & Galleries,National Gallery,50003996,"995,891.00",NG GiA February 2018
Department for Culture Media and Sport,Department for Culture Media and Sport,05/02/2018,Grant-in-Aid (DCMS NDPBs),GIA Museums & Galleries,National Maritime Museum,50003997,"1,293,333.00",RMG GiA February 2018
Department for Culture Media and Sport,Department for Culture Media and Sport,01/02/2018,Grant-in-Aid (DCMS NDPBs),GIA Museums & Galleries,National Museums & Galleries Merseyside,50003998,"1,215,554.00",NML GiA February 2018
Department for Culture Media and Sport,Department for Culture Media and Sport,01/02/2018,Grant-in-Aid (DCMS NDPBs),GIA Museums & Galleries,National Portrait Gallery,50003999,"252,750.00",NPG GiA February 2018
Department for Culture Media and Sport,Department for Culture Media and Sport,01/02/2018,Grant-in-Aid (DCMS NDPBs),GIA Museums & Galleries,Natural History Museum,50004000,"3,484,583.00",NHM GiA February 2018
Department for Culture Media and Sport,Department for Culture Media and Sport,01/02/2018,Grant-in-Aid (DCMS NDPBs),OFCOM,OFCOM,50004001,"4,461,074.00",OfUHF GiA February 2018
Department for Culture Media and Sport,Department for Culture Media and Sport,01/02/2018,Grant-in-Aid (DCMS NDPBs),GIA Museums & Galleries,The Royal Armouries,50004002,"715,422.00",RA GiA February 2018
Department for Culture Media and Sport,Department for Culture Media and Sport,01/02/2018,Grant-in-Aid (DCMS NDPBs),GIA S4C Welsh Fourth Channel,S4C-Sianel Pedwar Cymru-all inv inc. GIA,50004003,"641,000.00",S4C GiA February 2018
Department for Culture Media and Sport,Department for Culture Media and Sport,01/02/2018,Grant-in-Aid (DCMS NDPBs),GIA Museums & Galleries,Science Museum Group (ex-NMSI),50004004,"4,062,000.00",SMG GiA February 2018
Department for Culture Media and Sport,Department for Culture Media and Sport,01/02/2018,Grant-in-Aid (DCMS NDPBs),GIA Sports bodies,Sport Ground Safety Authority,50004005,"130,000.00",SGSA GiA February 2018
Department for Culture Media and Sport,Department for Culture Media and Sport,01/02/2018,Grant-in-Aid (DCMS NDPBs),GIA Museums & Galleries,Sir John Soane's Museum,50004006,"82,000.00",SJSM GiA February 2018
Department for Culture Media and Sport,Department for Culture Media and Sport,01/02/2018,Grant-in-Aid (DCMS NDPBs),GIA Sports bodies,Sport England,50004007,"8,000,000.00",SE GiA February 2018
Department for Culture Media and Sport,Department for Culture Media and Sport,05/02/2018,Grant-in-Aid (DCMS NDPBs),GIA Museums & Galleries,Tate Gallery,50004008,"3,172,166.00",TATE GiA February 2018
Department for Culture Media and Sport,Department for Culture Media and Sport,05/02/2018,Grant-in-Aid (DCMS NDPBs),GIA Sports bodies,United Kingdom Sports Council,50004009,"3,662,559.00",UKS GiA February 2018
Department for Culture Media and Sport,Department for Culture Media and Sport,01/02/2018,Grant-in-Aid (DCMS NDPBs),GIA Sports bodies,United Kingdom Anti Doping Ltd,50004010,"450,000.00",UKAD GiA February 2018
Department for Culture Media and Sport,Department for Culture Media and Sport,01/02/2018,Grant-in-Aid (DCMS NDPBs),GIA Museums & Galleries,Victoria & Albert Museum,50004011,"3,095,500.00",VA GiA February 2018
Department for Culture Media and Sport,Department for Culture Media and Sport,01/02/2018,Grant-in-Aid (DCMS NDPBs),GIA Museums & Galleries,Wallace Collection,50004012,"470,000.00",TWC GiA February 2018
Department for Culture Media and Sport,Department for Culture Media and Sport,05/02/2018,Grant-in-Aid (DCMS NDPBs),GIA Gambling + Lottery bodies,National Lottery Commission,50004013,"309,608.00",NLC GiA February 2018
Department for Culture Media and Sport,Department for Culture Media and Sport,01/02/2018,Museum Loans (NCA) Additions,Museum Loans,Geffrye Museum,50004014,"37,500.00",GML Loan February 2018
Department for Culture Media and Sport,Department for Culture Media and Sport,13/02/2018,Grant to BBC:Home Broadcasting,Home Broadcasting:Grant to BBC,British Broadcasting Corporation,50004015,"250,621,815.00",BBC GiA February 2018
Department for Culture Media and Sport,Department for Culture Media and Sport,09/02/2018,Capital Grant Private Sector,DD2 Program,King's College London,50004043,"1,072,441.80",D1004 5G HUB1 MG4 Kc
Department for Culture Media and Sport,Department for Culture Media and Sport,09/02/2018,Capital Grant Private Sector,DD2 Program,University of Surrey,50004044,"561,437.44",D1002 5G HUB1 MG4 Su
Department for Culture Media and Sport,Department for Culture Media and Sport,09/02/2018,Capital Grant Private Sector,DD2 Program,University of Bristol,50004045,"72,940.83",D1003 5G HUB1 MG4 Br
Department for Culture Media and Sport,Department for Culture Media and Sport,01/02/2018,Current Grants Private Sector,PASO,Faith Regen Foundation,50004054,"31,484.00",A1660 Faith Regen Foundation Tampon Tax
Department for Culture Media and Sport,Department for Culture Media and Sport,01/02/2018,Current Grants Private Sector,Youth Policy & NCS,National Citizen Service,50004056,"19,602,010.00",A1557 NCS Programme p11 1718
Department for Culture Media and Sport,Department for Culture Media and Sport,02/02/2018,Capital Grants to LAs,Broadband UK Capital+Programme,Hampshire County Council,50004057,"512,599.00", Hampshire County Council C5 Q1 17-18
Department for Culture Media and Sport,Department for Culture Media and Sport,06/02/2018,Current Grants Private Sector,Creative Skillset,Creative Skillset SIF,50004058,"1,108,228.00",Creative Skillset SIF
Department for Culture Media and Sport,Department for Culture Media and Sport,02/02/2018,Current Grants Private Sector,LPW and Ecclesiastical,Topmark Claims Management Ltd,50004059,"529,274.41",Funding for LPW 240118_310118
Department for Culture Media and Sport,Department for Culture Media and Sport,05/02/2018,Current Grants Private Sector,PASO,STOCKPORT WOMENS CENTRE,50004060,"38,819.15",A1594 Stockport Women's Centre Tampon Tax
Department for Culture Media and Sport,Department for Culture Media and Sport,05/02/2018,Current Grants Private Sector,PASO,Southall Black Sisters,50004061,"29,192.00",A1684 Southall Black Sisisters Tampon Tax Q4 1718
Department for Culture Media and Sport,Department for Culture Media and Sport,07/02/2018,Management of Grant Programmes,LPW and Ecclesiastical,Topmark Claims Mgt (Fees A/C),50004062,"53,625.00",LPW Admin Fees Nov 2017
Department for Culture Media and Sport,Department for Culture Media and Sport,07/02/2018,Management of Grant Programmes,LPW and Ecclesiastical,Topmark Claims Mgt (Fees A/C),50004062,294,LPW Admin Fees Nov 2017
Department for Culture Media and Sport,Department for Culture Media and Sport,08/02/2018,Current Grants Private Sector,LPW and Ecclesiastical,The Archbishops Council,50004063,"26,760.44",CCB08/001 Chelmsford Feb 2018 grant 2nd
Department for Culture Media and Sport,Department for Culture Media and Sport,08/02/2018,Current Grants Private Sector,LPW and Ecclesiastical,The Archbishops Council,50004064,"54,955.75",CCB39/001 Truro Cathedral Feb 2018 grant
Department for Culture Media and Sport,Department for Culture Media and Sport,08/02/2018,Current Grants Private Sector,LPW and Ecclesiastical,The Archbishops Council,50004065,"63,723.97",CCb40/001 Wakefield Cathedral Feb 2018
Department for Culture Media and Sport,Department for Culture Media and Sport,08/02/2018,Current Grants Private Sector,LPW and Ecclesiastical,The Archbishops Council,50004066,"37,255.81",CCB33/001 St Edmundsbury Cathedral Feb
Department for Culture Media and Sport,Department for Culture Media and Sport,08/02/2018,Current Grants Private Sector,LPW and Ecclesiastical,The Archbishops Council,50004067,"41,283.98",CCB38/001 Southwell Cathedral Feb 2018
Department for Culture Media and Sport,Department for Culture Media and Sport,08/02/2018,Current Grants Private Sector,LPW and Ecclesiastical,The Archbishops Council,50004069,"35,749.30",CCB99/181 Salford RC Cathedral Feb 2018
Department for Culture Media and Sport,Department for Culture Media and Sport,08/02/2018,Current Grants Private Sector,LPW and Ecclesiastical,The Archbishops Council,50004070,"34,500.60",CCB31/001 Rochester Cathedral Feb 2018
Department for Culture Media and Sport,Department for Culture Media and Sport,08/02/2018,Current Grants Private Sector,LPW and Ecclesiastical,The Archbishops Council,50004073,"84,794.35",CCB99/809/Nottingham RC Cathedral Feb 18
Department for Culture Media and Sport,Department for Culture Media and Sport,08/02/2018,Current Grants Private Sector,LPW and Ecclesiastical,The Archbishops Council,50004074,"28,026.77",CCB22/001 Liverpool Cathedral Feb 2018
Department for Culture Media and Sport,Department for Culture Media and Sport,08/02/2018,Current Grants Private Sector,LPW and Ecclesiastical,The Archbishops Council,50004075,"39,472.42",CCB19/001 Leicester Cathedral Feb 2018
Department for Culture Media and Sport,Department for Culture Media and Sport,08/02/2018,Current Grants Private Sector,LPW and Ecclesiastical,The Archbishops Council,50004076,"134,220.12",CCB13/001 Durham Cathedral Feb 2018
Department for Culture Media and Sport,Department for Culture Media and Sport,08/02/2018,Current Grants Private Sector,LPW and Ecclesiastical,The Archbishops Council,50004077,"75,221.74",CCB11/001 Coventry Cathedral Feb 2018
Department for Culture Media and Sport,Department for Culture Media and Sport,08/02/2018,Current Grants Private Sector,LPW and Ecclesiastical,The Archbishops Council,50004078,"238,060.87",CCB99/905 Clifton Cathedral Feb 2018
Department for Culture Media and Sport,Department for Culture Media and Sport,09/02/2018,Current Grants Private Sector,PASO,Comic Relief,50004079,"516,910.00",a1612 Comic Relief Tampon Tax Q3 Q4 1718
Department for Culture Media and Sport,Department for Culture Media and Sport,13/02/2018,Current Grants Private Sector,PASO,White Ribbon Campaign,50004088,"37,857.14",A 1609 White Ribbon Campaign Tampon Tax
Department for Culture Media and Sport,Department for Culture Media and Sport,12/02/2018,Current Grants Private Sector,LPW and Ecclesiastical,Topmark Claims Management Ltd,50004090,"893,243.59",Funding for LPW 310118_070218
Department for Culture Media and Sport,Department for Culture Media and Sport,14/02/2018,Current Grants Private Sector,Youth Policy & NCS,Virgin Money Foundation,50004092,"224,098.00",A1530 Virgin Money Foundation P.11 1718
Department for Culture Media and Sport,Department for Culture Media and Sport,14/02/2018,Current Grants Private Sector,Youth Policy & NCS,Renaisi Ltd,50004093,"100,000.00",A1645 Renaisi Q2Q3 1718
Department for Culture Media and Sport,Department for Culture Media and Sport,13/02/2018,Capital Grants to LAs,Broadband UK Capital+Programme,Warwickshire County Council,50004094,"299,879.00",Warwickshire County Council
Department for Culture Media and Sport,Department for Culture Media and Sport,13/02/2018,Capital Grants to LAs,Broadband UK Capital+Programme,West Yorkshire Combined Authority,50004095,"505,389.00",West Yorkshire Combined Authority C8 Q2 17-18
Department for Culture Media and Sport,Department for Culture Media and Sport,13/02/2018,Capital Grants to LAs,Broadband UK Capital+Programme,Leicestershire County Council,50004096,"899,520.00",RUTWO LEIC C3 Q2 17-18
Department for Culture Media and Sport,Department for Culture Media and Sport,16/02/2018,Grant to OGD (Resource),OFCOM,OFCOM,50004098,"257,000.00",Community RadioGrant 2ndInstallment17/18
Department for Culture Media and Sport,Department for Culture Media and Sport,20/02/2018,Current Grants Private Sector,Youth Policy & NCS,BRITISH YOUTH COUNCIL,50004099,"56,941.75",a 1450 British Youth Council Q4 1718
Department for Culture Media and Sport,Department for Culture Media and Sport,19/02/2018,Current Grants Private Sector,Spectrum + Broadband prog cost,TechUK,50004101,"30,000.00",PAYMENT OF GRANT
Department for Culture Media and Sport,Department for Culture Media and Sport,16/02/2018,Management of Grant Programmes,LPW and Ecclesiastical,Topmark Claims Mgt (Fees A/C),50004102,"44,675.00",LPW Admin fees Dec 2017
Department for Culture Media and Sport,Department for Culture Media and Sport,16/02/2018,Management of Grant Programmes,LPW and Ecclesiastical,Topmark Claims Mgt (Fees A/C),50004102,242,LPW Admin fees Dec 2017
Department for Culture Media and Sport,Department for Culture Media and Sport,19/02/2018,Current Grants Private Sector,Broadband UK Capital+Programme,Digital Mobile Spectrum Limited,50004103,"339,541.00",DMSL VS C2 Feb'18
Department for Culture Media and Sport,Department for Culture Media and Sport,16/02/2018,Current Grants Private Sector,LPW and Ecclesiastical,Topmark Claims Management Ltd,50004105,"1,914,406.62",Funding for LPW 070218_1400218
Department for Culture Media and Sport,Department for Culture Media and Sport,19/02/2018,Current Grants Private Sector,DD2 Program,The Tech Partnership,50004106,"25,000.00",WORK CARRIED OUT ON COMMON LANGUAGE SET
Department for Culture Media and Sport,Department for Culture Media and Sport,19/02/2018,Current Grants Private Sector,LPW and Ecclesiastical,The Archbishops Council,50004107,"38,563.39",ccb07/001 Carlisle Cathedral Feb 2018
Department for Culture Media and Sport,Department for Culture Media and Sport,19/02/2018,Current Grants Private Sector,LPW and Ecclesiastical,The Archbishops Council,50004109,"250,000.00",CCB10/001 Chichester Cathedral Feb 2018
Department for Culture Media and Sport,Department for Culture Media and Sport,19/02/2018,Current Grants Private Sector,LPW and Ecclesiastical,The Archbishops Council,50004110,"211,965.71",CCB99/905 Clifton Cathedral Feb 2018
Department for Culture Media and Sport,Department for Culture Media and Sport,19/02/2018,Current Grants Private Sector,LPW and Ecclesiastical,The Archbishops Council,50004111,"64,300.00",CCB14/001 Ely Cathedral Feb 2018 grant
Department for Culture Media and Sport,Department for Culture Media and Sport,19/02/2018,Current Grants Private Sector,LPW and Ecclesiastical,The Archbishops Council,50004112,"79,741.00",CCB14/001 Ely Cathedral Feb 2018 grant
Department for Culture Media and Sport,Department for Culture Media and Sport,19/02/2018,Current Grants Private Sector,LPW and Ecclesiastical,The Archbishops Council,50004113,"67,329.52",CCB15/001 Exeter Cathedral Feb 2018 gran
Department for Culture Media and Sport,Department for Culture Media and Sport,19/02/2018,Current Grants Private Sector,LPW and Ecclesiastical,The Archbishops Council,50004114,"115,231.22",CCB16/001 Gloucester Cathedral Feb 2018
Department for Culture Media and Sport,Department for Culture Media and Sport,19/02/2018,Current Grants Private Sector,LPW and Ecclesiastical,The Archbishops Council,50004116,"76,182.30",CCB17/001 Guildford Cathedral Feb 2018
Department for Culture Media and Sport,Department for Culture Media and Sport,19/02/2018,Current Grants Private Sector,LPW and Ecclesiastical,The Archbishops Council,50004117,"177,310.58",CCB20/001 Linchfield Cathedral Feb 2018
Department for Culture Media and Sport,Department for Culture Media and Sport,19/02/2018,Current Grants Private Sector,LPW and Ecclesiastical,The Archbishops Council,50004119,"118,397.03",CCB22/001 Liverpool Cathedral Feb 2018
Department for Culture Media and Sport,Department for Culture Media and Sport,19/02/2018,Current Grants Private Sector,LPW and Ecclesiastical,The Archbishops Council,50004120,"190,618.48",CCB37/001 Southwark Cathedral Feb 2018
Department for Culture Media and Sport,Department for Culture Media and Sport,19/02/2018,Current Grants Private Sector,LPW and Ecclesiastical,The Archbishops Council,50004121,"53,555.98",CCB38/001 Southwell Cathedral Feb 2018
Department for Culture Media and Sport,Department for Culture Media and Sport,19/02/2018,Current Grants Private Sector,LPW and Ecclesiastical,The Archbishops Council,50004122,"213,601.13",CCB41/001 Winchester Cathedral Feb 2018
Department for Culture Media and Sport,Department for Culture Media and Sport,19/02/2018,Current Grants Private Sector,LPW and Ecclesiastical,The Archbishops Council,50004123,"207,393.91",CCB99/804 Shresbury RC Cathedral Feb2018
Department for Culture Media and Sport,Department for Culture Media and Sport,19/02/2018,Current Grants Private Sector,LPW and Ecclesiastical,The Archbishops Council,50004124,"30,829.64",CCB41/001 Winchester Cathedral Feb 2018
Department for Culture Media and Sport,Department for Culture Media and Sport,21/02/2018,Current Grants Private Sector,Social Action,Westbank Community Health and Care,50004125,"31,250.00",A1646 Westbank Community Health & CareQ4
Department for Culture Media and Sport,Department for Culture Media and Sport,21/02/2018,Current Grants Private Sector,DD2 Program,TECH CITY (UK) LTD,50004130,"230,041.00",January grant claim for TCUK
Department for Culture Media and Sport,Department for Culture Media and Sport,21/02/2018,Current Grants Private Sector,DD2 Program,TECH CITY (UK) LTD,50004131,"248,224.00",January grant claim for Tech North
Department for Culture Media and Sport,Department for Culture Media and Sport,26/02/2018,Capital Grant Private Sector,Grant support to NFTS,National Film & Television School,50004133,"186,000.00",A1740 National Film & Television School Feb 1718
Department for Culture Media and Sport,Department for Culture Media and Sport,26/02/2018,Capital Grant Private Sector,Grant support to NFTS,National Film & Television School,50004133,"19,421.00",A1740 National Film & Television School Feb 1718
Department for Culture Media and Sport,Department for Culture Media and Sport,26/02/2018,Current Grants Private Sector,PASO,Hestia,50004169,"36,628.25",A1664 Hestia Housing Support Tampon Tax
Department for Culture Media and Sport,Department for Culture Media and Sport,27/02/2018,Current Grants Private Sector,Arts Support in Culture Team,Newcastle Gateshead Initiative,50004171,"549,206.00",Tranch 4 as per DCMS NGI Grant agreement
Department for Culture Media and Sport,Department for Culture Media and Sport,27/02/2018,Capital Grant Private Sector,PASO,The Air Ambulance Service,50004174,"685,700.00",The Air Ambulance Service Q4 1718
Department for Culture Media and Sport,Department for Culture Media and Sport,26/02/2018,Current Grants Private Sector,LPW and Ecclesiastical,Topmark Claims Management Ltd,50004175,"711,987.82",funding for LPW 140218_210218
Department for Culture Media and Sport,Department for Culture Media and Sport,27/02/2018,Current Grants Private Sector,Youth Policy & NCS,National Citizen Service,50004176,"7,200,000.00",A 1557 NCS Programme p.12 1718
Department for Culture Media and Sport,Department for Culture Media and Sport,27/02/2018,Current Grants Private Sector,Governm Inclusive Economy Unit,Greater Manchester Combined Authority,50004177,"5,000,000.00",C1093 Greater Manchester Combined Authority
Department for Culture Media and Sport,Department for Culture Media and Sport,28/02/2018,Current Grants Private Sector,DD2 Program,TECHNOLOGY STRATEGY BOARD (INNOVATE UK),50004178,"108,099.24",CityVerve FY17/18-IoT UK
Department for Culture Media and Sport,Department for Culture Media and Sport,28/02/2018,Current Grants Private Sector,DD2 Program,TECHNOLOGY STRATEGY BOARD (INNOVATE UK),50004178,"549,100.30",CityVerve FY17/18-IoT UK
Department for Culture Media and Sport,Department for Culture Media and Sport,28/02/2018,Current Grants Private Sector,DD2 Program,TECHNOLOGY STRATEGY BOARD (INNOVATE UK),50004178,"41,871.57",CityVerve FY17/18-IoT UK
Department for Culture Media and Sport,Department for Culture Media and Sport,28/02/2018,Current Grants Private Sector,DD2 Program,TECHNOLOGY STRATEGY BOARD (INNOVATE UK),50004178,"3,600.00",CityVerve FY17/18-IoT UK
Department for Culture Media and Sport,Department for Culture Media and Sport,28/02/2018,Current Grants Private Sector,DD2 Program,TECHNOLOGY STRATEGY BOARD (INNOVATE UK),50004178,609.46,CityVerve FY17/18-IoT UK
Department for Culture Media and Sport,Department for Culture Media and Sport,28/02/2018,Current Grants Private Sector,DD2 Program,TECHNOLOGY STRATEGY BOARD (INNOVATE UK),50004178,"6,120.00",CityVerve FY17/18-IoT UK
Department for Culture Media and Sport,Department for Culture Media and Sport,28/02/2018,Current Grants Private Sector,DD2 Program,Engineering and Physical Sciences Resear,50004179,"855,438.00",EPSRC IOT UK
Department for Culture Media and Sport,Department for Culture Media and Sport,28/02/2018,Current Grants Private Sector,DD2 Program,Engineering and Physical Sciences Resear,50004179,"8,250.00",EPSRC IOT UK
1,,,,,,,,
